bitfinex/quotes_BTCUSD_20250414
["timestamp","ask_amount","ask_price","bid_price","bid_amount"]
[1744597454799,0.0060933,84439.0,84438.0,0.74686684]
[1744597455794,0.0100933,84439.0,84438.0,0.74686684]
[1744597456042,0.0100933,84439.0,84438.0,0.73232599]
[1744597456203,0.0060933,84439.0,84438.0,0.73232599]
[1744597456408,0.0536933,84439.0,84438.0,0.61148445]
[1744597456748,0.0526933,84439.0,84438.0,0.61148445]
[1744597457085,0.0526933,84439.0,84438.0,0.4271816]
[1744597457466,0.0526933,84439.0,84438.0,0.00848249]
[1744597457686,0.0526933,84439.0,84436.0,0.011843]
[1744597457909,0.0526933,84439.0,84437.0,0.19778002]
[1744597458104,0.0526933,84439.0,84437.0,0.00829002]
[1744597458343,0.0526933,84439.0,84437.0,0.19777902]
[1744597458541,0.0496933,84439.0,84437.0,0.19777902]
[1744597458914,0.0516933,84439.0,84437.0,0.19777902]
[1744597459494,0.0496933,84439.0,84437.0,0.19777902]
[1744597459737,0.0526933,84439.0,84437.0,0.19777902]
[1744597461738,0.0526933,84439.0,84437.0,0.00829002]
[1744597461949,0.0526933,84439.0,84436.0,0.011843]
[1744597462156,0.0526933,84439.0,84437.0,0.00820085]
[1744597462359,0.0050933,84439.0,84437.0,0.19768985]
[1744597462989,0.0020933,84439.0,84437.0,0.19768985]
[1744597463179,0.0060933,84439.0,84437.0,0.19768985]
[1744597463397,0.0050933,84439.0,84437.0,0.19768985]
[1744597463579,0.0060933,84439.0,84437.0,0.19768985]
[1744597464699,0.0030933,84439.0,84437.0,0.19768985]
[1744597464901,0.0060933,84439.0,84437.0,0.19768985]
[1744597465307,0.0060933,84439.0,84438.0,0.13538239]
[1744597465651,0.0060933,84439.0,84438.0,0.14356786]
[1744597466110,0.0060933,84439.0,84438.0,0.48593602]
[1744597466345,3e-07,84439.0,84438.0,0.48356786]
[1744597466550,0.0004223,84447.0,84446.0,0.59111085]
[1744597466756,0.0004223,84447.0,84446.0,0.71195239]
[1744597466956,0.0004223,84447.0,84446.0,1.18515729]
[1744597467298,3e-07,84447.0,84446.0,1.18515729]
[1744597467896,0.0010003,84447.0,84446.0,1.18515729]
[1744597468098,0.0010003,84447.0,84446.0,1.09165729]
[1744597469101,3e-07,84447.0,84446.0,1.09165729]
[1744597469504,3e-07,84447.0,84446.0,1.09265729]
[1744597469873,3e-07,84447.0,84446.0,0.75265729]
[1744597470940,3e-07,84447.0,84446.0,1.09265729]
[1744597472540,3e-07,84447.0,84446.0,1.10005507]
[1744597473533,3e-07,84447.0,84446.0,1.09265729]
[1744597474086,3e-07,84447.0,84446.0,1.09088654]
[1744597475456,3e-07,84447.0,84446.0,1.08988654]
[1744597475891,3e-07,84447.0,84446.0,1.09088654]
[1744597476666,3e-07,84447.0,84446.0,1.08988654]
[1744597476990,3e-07,84447.0,84446.0,1.09288654]
[1744597477787,3e-07,84447.0,84446.0,1.09388654]
[1744597478968,0.011838,84473.0,84463.0,0.011839]
[1744597479153,0.0162405,84474.0,84468.0,0.011838]
[1744597479154,0.00046295,84469.0,84468.0,0.011838]
[1744597479347,0.00046295,84469.0,84468.0,0.01985161]
[1744597481940,0.00046295,84469.0,84468.0,0.00801361]
[1744597482338,0.00346295,84469.0,84468.0,0.00801361]
[1744597487267,0.00046295,84469.0,84468.0,0.00801361]
[1744597487438,0.00246295,84469.0,84468.0,0.00801361]
[1744597489875,0.00246295,84469.0,84468.0,0.12885515]
[1744597490349,0.00246295,84469.0,84468.0,0.14576356]
[1744597490554,0.00246295,84469.0,84468.0,0.12885515]
[1744597492235,0.00246295,84469.0,84468.0,0.14576355]
[1744597493632,0.00246295,84469.0,84468.0,0.143396]
[1744597494127,0.00246295,84469.0,84468.0,0.14576342]
[1744597494593,0.00246295,84469.0,84468.0,0.143396]
[1744597494818,0.00246295,84469.0,84468.0,0.14576342]
[1744597495033,0.00246295,84469.0,84468.0,0.143396]
[1744597495424,0.00246295,84469.0,84468.0,0.12885515]
[1744597495788,0.00046295,84469.0,84468.0,0.12885515]
[1744597497033,0.00146295,84469.0,84468.0,0.12885515]
[1744597497435,0.00146295,84469.0,84468.0,0.13122265]
[1744597497855,0.00146295,84469.0,84468.0,0.12885515]
[1744597499550,0.4165,84528.0,84468.0,0.46885515]
[1744597499842,0.07235115,84541.0,84540.0,0.290259]
[1744597500050,0.07235115,84541.0,84540.0,0.190259]
[1744597500254,0.07249016,84541.0,84540.0,0.19806706]
[1744597500467,0.07249016,84541.0,84540.0,0.21260791]
[1744597501000,0.07249016,84541.0,84540.0,0.19806706]
[1744597501511,0.07249016,84541.0,84540.0,0.20545742]
[1744597501748,0.07349016,84541.0,84540.0,0.22236385]
[1744597501934,0.07349016,84541.0,84540.0,0.55999827]
[1744597502297,0.07249016,84541.0,84540.0,0.56202643]
[1744597502510,0.07249016,84541.0,84540.0,0.55463607]
[1744597502739,0.07249016,84541.0,84540.0,0.55863607]
[1744597503095,0.07249016,84541.0,84540.0,0.55463607]
[1744597503296,0.012812,84543.0,84540.0,0.55463607]
[1744597503297,1.6e-07,84543.0,84542.0,0.54479585]
[1744597503503,5.8e-07,84554.0,84553.0,0.01554085]
[1744597503725,5.8e-07,84554.0,84553.0,0.67426766]
[1744597503945,5.8e-07,84554.0,84553.0,0.67136347]
[1744597504375,5.8e-07,84559.0,84557.0,0.35454085]
[1744597504527,5.8e-07,84559.0,84558.0,0.48108853]
[1744597504838,5.8e-07,84559.0,84558.0,0.67130753]
[1744597505410,8.4e-07,84562.0,84561.0,0.54475285]
[1744597505644,8.4e-07,84562.0,84561.0,0.67131229]
[1744597506468,8.4e-07,84562.0,84561.0,0.67331229]
[1744597507519,0.1642618,84588.0,84587.0,0.20369485]
[1744597507718,0.1642618,84588.0,84587.0,0.74787425]
[1744597507719,0.16472466,84588.0,84587.0,0.74787425]
[1744597509401,0.16472466,84588.0,84587.0,0.5451794]
[1744597509598,0.16472466,84588.0,84587.0,0.42433786]
[1744597509823,0.16472466,84588.0,84587.0,0.5451794]
[1744597510391,0.16472466,84588.0,84587.0,0.54054154]
[1744597510745,0.00088466,84588.0,84587.0,0.55508239]
[1744597510959,0.00088466,84588.0,84587.0,0.47638239]
[1744597512399,0.00088466,84588.0,84587.0,0.47938239]
[1744597512716,0.00088466,84588.0,84587.0,0.47738239]
[1744597513713,0.00088466,84588.0,84587.0,0.47638239]
[1744597514352,0.00088466,84588.0,84587.0,0.47838239]
[1744597514579,6.6e-07,84589.0,84588.0,0.54469285]
[1744597514783,0.0001394,84589.0,84588.0,0.66553439]
[1744597515169,4e-07,84589.0,84588.0,0.66553439]
[1744597515375,4e-07,84589.0,84588.0,0.71483439]
[1744597515577,8e-05,84610.0,84609.0,0.54464585]
[1744597515796,8e-05,84610.0,84609.0,0.66548739]
[1744597518542,8e-05,84610.0,84609.0,0.47638239]
[1744597519657,0.200891,84623.0,84609.0,0.47638239]
[1744597519658,8e-07,84639.0,84638.0,0.002]
[1744597519865,8e-07,84639.0,84638.0,0.66642239]
[1744597520032,0.188899,84702.0,84673.0,0.529962]
[1744597520249,0.188905,84699.0,84673.0,0.54450285]
[1744597520440,0.011806,84697.0,84673.0,0.54450285]
[1744597520643,0.011806,84699.0,84673.0,0.54450285]
[1744597520843,0.00088428,84674.0,84673.0,0.54450285]
[1744597521007,0.00088428,84674.0,84673.0,0.66534439]
[1744597522400,2.8e-07,84679.0,84678.0,0.54449185]
[1744597522601,2.8e-07,84679.0,84678.0,0.66533339]
[1744597522721,0.00013901,84679.0,84678.0,0.66533339]
[1744597524290,0.00013901,84679.0,84678.0,0.66933339]
[1744597524629,0.00013901,84679.0,84678.0,0.48038239]
[1744597524837,0.00013901,84679.0,84678.0,0.12584154]
[1744597525259,0.00013901,84679.0,84678.0,0.31715413]
[1744597525456,0.00013901,84679.0,84678.0,0.31479254]
[1744597525677,0.00013901,84679.0,84678.0,0.32933339]
[1744597526196,0.00013901,84679.0,84678.0,0.31479254]
[1744597526580,0.011808,84688.0,84686.0,0.001]
[1744597526949,0.011807,84690.0,84686.0,0.001]
[1744597527182,0.011807,84690.0,84686.0,0.012808]
[1744597527328,0.011807,84689.0,84686.0,0.001]
[1744597527714,0.011807,84690.0,84686.0,0.001]
[1744597527927,0.011807,84690.0,84687.0,0.011808]
[1744597528129,0.011807,84689.0,84686.0,0.012808]
[1744597528429,0.011807,84689.0,84686.0,0.013808]
[1744597528625,0.011807,84689.0,84686.0,0.002]
[1744597528828,0.061707,84689.0,84687.0,0.001]
[1744597529031,0.188928,84688.0,84687.0,0.001]
[1744597529233,0.200754,84681.0,84678.0,0.12084154]
[1744597529458,0.0499,84689.0,84683.0,0.011808]
[1744597529663,0.0499,84703.0,84689.0,0.011807]
[1744597529818,0.10348098,84694.0,84693.0,0.188917]
[1744597530025,0.10348098,84694.0,84693.0,0.30975854]
[1744597530223,0.10348098,84694.0,84693.0,0.64975854]
[1744597530428,0.10348098,84694.0,84693.0,0.30975854]
[1744597530623,0.17728,84708.0,84694.0,0.01454085]
[1744597530826,0.012812,84713.0,84694.0,0.13774333]
[1744597531265,0.012812,84713.0,84694.0,0.47774333]
[1744597531463,2e-07,84695.0,84694.0,0.48512699]
[1744597533362,2e-07,84695.0,84694.0,0.48912699]
[1744597533687,2e-07,84695.0,84694.0,0.48512699]
[1744597533897,2e-07,84695.0,84694.0,0.49112699]
[1744597534614,2e-07,84695.0,84694.0,0.47658614]
[1744597534840,2e-07,84695.0,84694.0,0.13658614]
[1744597535319,0.013805,84709.0,84706.0,0.200693]
[1744597535320,0.002,84709.0,84706.0,0.200693]
[1744597535527,0.002,84709.0,84707.0,0.12084154]
[1744597535771,0.002,84709.0,84707.0,0.1291857]
[1744597535923,0.188884,84708.0,84707.0,0.1291857]
[1744597536124,0.002,84709.0,84707.0,0.1291857]
[1744597537192,0.002,84709.0,84707.0,0.1301857]
[1744597537396,0.002,84709.0,84708.0,0.30972554]
[1744597537601,0.002,84709.0,84708.0,0.31807226]
[1744597538001,0.002,84709.0,84708.0,0.33261311]
[1744597538205,0.0004212,84722.0,84720.0,0.188857]
[1744597538405,0.0004212,84722.0,84720.0,0.12920398]
[1744597538585,0.1892752,84722.0,84720.0,0.00836244]
[1744597538784,0.011804,84713.0,84708.0,0.011805]
[1744597538987,0.011804,84714.0,84709.0,0.14096937]
[1744597539259,0.011804,84714.0,84710.0,0.011804]
[1744597539466,0.18887,84715.0,84711.0,0.13264554]
[1744597539676,0.188873,84713.0,84711.0,0.12916575]
[1744597539878,0.188873,84713.0,84711.0,0.00832421]
[1744597540207,0.188873,84713.0,84709.0,0.00146278]
[1744597540208,0.188879,84710.0,84709.0,0.00146278]
[1744597540417,0.188879,84710.0,84655.0,0.0467]
[1744597540614,0.011808,84683.0,84674.0,0.01181]
[1744597540819,0.011808,84683.0,84678.0,0.011809]
[1744597541016,0.011808,84683.0,84679.0,0.12924388]
[1744597541246,0.200743,84685.0,84680.0,0.011809]
[1744597541462,0.011808,84684.0,84681.0,0.12084154]
[1744597541714,0.188939,84683.0,84681.0,0.00841611]
[1744597541904,0.011808,84684.0,84681.0,0.00841611]
[1744597542125,0.011808,84684.0,84678.0,0.011809]
[1744597542308,0.011808,84684.0,84682.0,0.00842437]
[1744597542485,0.200754,84681.0,84678.0,0.12084154]
[1744597542665,0.011806,84697.0,84690.0,0.011807]
[1744597542862,0.0004212,84717.0,84696.0,0.011806]
[1744597543083,0.1772,84714.0,84710.0,0.011804]
[1744597543281,0.377875,84714.0,84709.0,0.011805]
[1744597543537,0.011804,84713.0,84709.0,0.011805]
[1744597543706,0.011804,84713.0,84708.0,0.011805]
[1744597543913,0.189004,84712.0,84708.0,0.011805]
[1744597544143,0.011804,84711.0,84706.0,0.011805]
[1744597544320,0.188879,84710.0,84707.0,0.12084154]
[1744597544520,0.200683,84710.0,84707.0,0.12084154]
[1744597545307,0.188886,84707.0,84706.0,0.00046286]
[1744597545511,0.200686,84709.0,84706.0,0.00046286]
[1744597546246,0.200686,84709.0,84707.0,0.001]
[1744597546814,0.13870768,84709.0,84706.0,0.00046286]
[1744597548581,0.13870768,84709.0,84707.0,0.00744786]
[1744597548964,0.13870768,84709.0,84706.0,0.00046286]
[1744597549170,0.13870768,84709.0,84707.0,0.00705852]
[1744597549401,0.13870768,84709.0,84706.0,0.00046286]
[1744597549971,0.188886,84707.0,84706.0,0.00046286]
[1744597550197,0.188972,84669.0,84665.0,0.08232092]
[1744597550527,0.188956,84676.0,84672.0,0.01181]
[1744597550669,0.200782,84669.0,84666.0,0.00713957]
[1744597550868,0.200782,84669.0,84665.0,0.07097287]
[1744597551076,0.01181,84670.0,84666.0,0.011811]
[1744597551274,0.01181,84672.0,84666.0,0.200788]
[1744597551476,0.200782,84669.0,84665.0,0.07097287]
[1744597551661,0.01181,84671.0,84666.0,0.13265254]
[1744597551864,0.01181,84671.0,84666.0,0.12084154]
[1744597551865,0.188974,84668.0,84666.0,0.12084154]
[1744597552262,0.200784,84668.0,84665.0,0.07097287]
[1744597552520,0.200778,84670.0,84665.0,0.07097287]
[1744597552751,0.01181,84669.0,84666.0,0.004]
[1744597552870,0.188973,84668.0,84666.0,0.004]
[1744597553116,0.188927,84689.0,84682.0,0.011808]
[1744597553395,0.181,84688.0,84684.0,0.011808]
[1744597553511,0.181,84688.0,84685.0,0.32158454]
[1744597554116,1.3962,84691.0,84688.0,0.200736]
[1744597554398,1.2152,84691.0,84690.0,0.188924]
[1744597554586,1.2152,84691.0,84690.0,0.30976554]
[1744597556117,1.2152,84691.0,84690.0,0.12184154]
[1744597556311,1.14141085,84691.0,84690.0,0.12184154]
[1744597557131,1.14141085,84691.0,84690.0,0.1289502]
[1744597557567,1.14141085,84691.0,84690.0,0.00710866]
[1744597557771,0.200749,84683.0,84679.0,0.011809]
[1744597558222,0.188944,84681.0,84680.0,0.0071059]
[1744597558568,0.200749,84683.0,84678.0,0.011809]
[1744597558771,0.200753,84681.0,84678.0,0.12084154]
[1744597559176,0.200753,84681.0,84679.0,0.0071476]
[1744597559384,0.200753,84681.0,84680.0,0.002]
[1744597560236,0.192807,84692.0,84683.0,0.011808]
[1744597560406,0.011807,84690.0,84684.0,0.12084154]
[1744597560629,1.34214085,84691.0,84686.0,0.011808]
[1744597560836,1.14141085,84691.0,84689.0,0.188925]
[1744597560991,0.181,84690.0,84689.0,0.188925]
[1744597561316,0.181,84690.0,84689.0,0.30976654]
[1744597561935,0.181,84690.0,84689.0,0.12084154]
[1744597562517,0.188895,84704.0,84689.0,0.12184154]
[1744597562717,0.011807,84695.0,84690.0,0.12084154]
[1744597562920,0.188924,84690.0,84689.0,0.001]
[1744597563270,0.236124,84690.0,84689.0,0.001]
[1744597563699,0.188953,84677.0,84676.0,0.07050992]
[1744597563902,0.369953,84677.0,84676.0,0.07050992]
[1744597564124,0.188977,84666.0,84665.0,0.00046295]
[1744597564366,0.01181,84668.0,84665.0,0.00046295]
[1744597564770,0.188975,84667.0,84665.0,0.00046295]
[1744597565860,0.181,84677.0,84673.0,0.188959]
[1744597566065,0.181,84677.0,84674.0,0.32160854]
[1744597566262,0.181,84677.0,84674.0,0.32775272]
[1744597567741,0.181,84677.0,84676.0,0.188955]
[1744597567871,0.181,84677.0,84676.0,0.30979654]
[1744597568080,0.181,84677.0,84676.0,0.32332056]
[1744597568682,0.181,84677.0,84676.0,0.01352402]
[1744597569039,0.181,84677.0,84676.0,0.12822]
[1744597569241,0.181,84677.0,84676.0,0.1269871]
[1744597569820,0.181,84677.0,84676.0,0.13436556]
[1744597570184,0.181,84677.0,84676.0,0.13636556]
[1744597570499,0.18104,84693.0,84683.0,0.011808]
[1744597570700,0.18104,84693.0,84684.0,0.30977854]
[1744597571101,0.18104,84693.0,84685.0,0.00606366]
[1744597571304,0.011807,84691.0,84685.0,0.1269052]
[1744597571505,0.188931,84687.0,84685.0,0.00606366]
[1744597571936,0.188935,84685.0,84683.0,0.002]
[1744597572153,1.2154,84686.0,84683.0,0.013808]
[1744597572555,1.2154,84686.0,84684.0,0.00605126]
[1744597573382,1.2154,84686.0,84685.0,0.12084154]
[1744597573804,1.2154,84686.0,84685.0,0.12789272]
[1744597573955,1.2154,84686.0,84685.0,0.00705118]
[1744597574378,1.2154,84686.0,84685.0,0.001]
[1744597574838,0.011808,84684.0,84681.0,0.011809]
[1744597575042,0.011808,84684.0,84682.0,0.00604704]
[1744597575286,0.200745,84684.0,84682.0,0.00604704]
[1744597575666,0.011809,84680.0,84677.0,0.011809]
[1744597576265,0.011809,84680.0,84678.0,0.00604153]
[1744597576463,0.011809,84680.0,84677.0,0.011809]
[1744597576660,1.2154,84686.0,84683.0,0.188938]
[1744597576859,0.18104,84685.0,84684.0,0.00604705]
[1744597577070,0.18104,84685.0,84683.0,0.011808]
[1744597577271,0.18104,84685.0,84684.0,0.188937]
[1744597577637,0.18104,84685.0,84684.0,0.19498542]
[1744597577819,0.18104,84685.0,84684.0,0.00604842]
[1744597578023,0.369975,84685.0,84684.0,0.00604842]
[1744597578194,0.011809,84680.0,84674.0,0.18896]
[1744597578396,0.18104,84685.0,84682.0,0.011808]
[1744597578575,0.18104,84685.0,84682.0,0.200748]
[1744597578978,0.18104,84685.0,84683.0,0.00604842]
[1744597579186,0.188937,84684.0,84683.0,0.00604842]
[1744597579413,0.18104,84685.0,84682.0,0.011808]
[1744597579613,0.18104,84685.0,84683.0,0.00604842]
[1744597579819,0.18104,84685.0,84683.0,0.188939]
[1744597580020,0.18104,84685.0,84684.0,0.00604842]
[1744597580222,1.2154,84686.0,84685.0,0.188935]
[1744597580408,1.2154,84686.0,84685.0,0.31582014]
[1744597581430,1.2154,84686.0,84685.0,0.12688514]
[1744597581631,1.2154,84686.0,84685.0,0.12788514]
[1744597582826,1.2154,84686.0,84685.0,0.0060436]
[1744597583030,1.404333,84686.0,84681.0,0.200751]
[1744597583267,1.416141,84686.0,84685.0,0.001]
[1744597583466,1.404333,84686.0,84685.0,0.001]
[1744597583670,1.2154,84686.0,84685.0,0.001]
[1744597583964,1.2154,84686.0,84683.0,0.011808]
[1744597584172,1.2154,84686.0,84685.0,0.001]
[1744597584386,1.404333,84686.0,84685.0,0.001]
[1744597584584,0.011808,84685.0,84681.0,0.011809]
[1744597584818,0.188947,84680.0,84673.0,0.20077]
[1744597585010,0.188947,84680.0,84670.0,0.01181]
[1744597585011,0.188951,84678.0,84670.0,0.01181]
[1744597585167,0.188951,84678.0,84672.0,0.01181]
[1744597585345,0.188951,84678.0,84673.0,0.01181]
[1744597585547,0.188951,84678.0,84667.0,0.01181]
[1744597585746,0.188951,84678.0,84671.0,0.01181]
[1744597586157,0.188951,84678.0,84669.0,0.01181]
[1744597586370,0.188951,84678.0,84668.0,0.01181]
[1744597586590,0.188951,84678.0,84673.0,0.01181]
[1744597586771,0.188955,84676.0,84671.0,0.01181]
[1744597587181,0.01181,84668.0,84665.0,0.41916295]
[1744597587363,0.1806,84668.0,84665.0,0.01227395]
[1744597587559,0.1806,84668.0,84666.0,0.00608196]
[1744597587768,0.369575,84668.0,84666.0,0.00608196]
[1744597587963,0.188977,84666.0,84665.0,0.00046295]
[1744597588596,0.381385,84668.0,84665.0,0.00046295]
[1744597588597,0.1806,84668.0,84665.0,0.00046295]
[1744597588797,0.011812,84738.0,84665.0,0.00046295]
[1744597588798,0.188948,84679.0,84668.0,0.188973]
[1744597589002,0.1806,84678.0,84675.0,0.011809]
[1744597589203,0.369551,84678.0,84676.0,0.00614212]
[1744597589413,0.188965,84672.0,84668.0,0.01181]
[1744597589610,0.188969,84670.0,84669.0,0.00613385]
[1744597589808,0.188969,84670.0,84666.0,0.200788]
[1744597589809,0.188976,84667.0,84665.0,0.00046295]
[1744597590013,0.188965,84672.0,84666.0,0.0060982]
[1744597590449,0.188947,84680.0,84675.0,0.011809]
[1744597590760,1.2154,84686.0,84683.0,0.011808]
[1744597590931,0.1806,84685.0,84683.0,0.011808]
[1744597591280,0.1806,84685.0,84684.0,0.188937]
[1744597591430,0.1806,84685.0,84684.0,0.00616728]
[1744597593388,0.369535,84685.0,84684.0,0.00616728]
[1744597593782,0.369535,84685.0,84667.0,0.01181]
[1744597593783,0.188957,84675.0,84670.0,0.01181]
[1744597593985,0.188953,84678.0,84674.0,0.01181]
[1744597594222,0.200755,84681.0,84676.0,0.011809]
[1744597594389,0.1806,84685.0,84682.0,0.011808]
[1744597594871,0.1806,84685.0,84683.0,0.00612967]
[1744597595217,0.1806,84685.0,84684.0,0.188937]
[1744597595415,0.1806,84699.0,84697.0,0.011806]
[1744597595720,0.188908,84697.0,84692.0,0.200726]
[1744597595859,0.011807,84692.0,84684.0,0.011808]
[1744597596061,0.188906,84698.0,84694.0,0.011807]
[1744597596268,0.188906,84698.0,84691.0,0.188921]
[1744597596269,0.18891,84697.0,84695.0,0.00614757]
[1744597596467,0.18891,84697.0,84689.0,0.200731]
[1744597596468,0.188915,84695.0,84689.0,0.200731]
[1744597596671,0.188918,84693.0,84690.0,0.12698498]
[1744597597211,0.188922,84691.0,84690.0,0.00614344]
[1744597597386,0.188918,84693.0,84690.0,0.00614344]
[1744597597587,0.188918,84693.0,84689.0,0.00046295]
[1744597597818,0.188918,84693.0,84691.0,0.00610349]
[1744597597994,0.188924,84690.0,84689.0,0.00046295]
[1744597600801,0.188918,84693.0,84689.0,0.00046295]
[1744597601002,0.2299,84699.0,84689.0,0.00046295]
[1744597601003,0.188907,84698.0,84691.0,0.011807]
[1744597601213,0.188912,84696.0,84691.0,0.200728]
[1744597601408,0.200718,84696.0,84691.0,0.011807]
[1744597601613,0.188915,84694.0,84692.0,0.00616187]
[1744597602139,0.188919,84692.0,84689.0,0.00046295]
[1744597602360,0.200718,84696.0,84691.0,0.011807]
[1744597602513,0.188915,84694.0,84690.0,0.01796336]
[1744597602713,0.188915,84694.0,84692.0,0.00616187]
[1744597603019,0.200718,84696.0,84691.0,0.011807]
[1744597603219,0.188915,84694.0,84692.0,0.00616187]
[1744597603437,0.188923,84691.0,84689.0,0.00046295]
[1744597603639,0.188923,84691.0,84690.0,0.00583137]
[1744597603874,0.188923,84691.0,84690.0,0.00683137]
[1744597604168,0.188917,84693.0,84690.0,0.00683137]
[1744597604472,0.188922,84691.0,84690.0,0.00683137]
[1744597605051,0.188922,84691.0,84690.0,0.00583137]
[1744597605253,0.188922,84691.0,84689.0,0.00046295]
[1744597607130,0.188917,84693.0,84689.0,0.00046295]
[1744597607343,0.188922,84691.0,84689.0,0.00046295]
[1744597607740,0.188922,84691.0,84690.0,0.00576579]
[1744597607983,0.188922,84691.0,84689.0,0.00046295]
[1744597614050,0.188909,84698.0,84689.0,0.00046295]
[1744597614051,0.1806,84699.0,84695.0,0.011807]
[1744597614251,0.1806,84699.0,84696.0,0.00580962]
[1744597614465,0.188906,84698.0,84696.0,0.00580962]
[1744597614641,0.200726,84693.0,84687.0,0.011808]
[1744597614860,0.188924,84690.0,84664.0,0.0493]
[1744597615043,0.188924,84690.0,84689.0,0.00146295]
[1744597615251,0.363884,84690.0,84689.0,0.00146295]
[1744597615548,0.363884,84690.0,84689.0,0.00046295]
[1744597615967,0.363884,84690.0,84689.0,0.00146295]
[1744597617276,0.412484,84690.0,84689.0,0.00146295]
[1744597617636,0.53332554,84690.0,84689.0,0.00046295]
[1744597618463,0.412484,84690.0,84689.0,0.00046295]
[1744597622320,0.363884,84690.0,84689.0,0.00046295]
[1744597622497,0.17496,84690.0,84689.0,0.00046295]
[1744597622908,0.17496,84690.0,84689.0,0.0062825]
[1744597623041,0.17496,84690.0,84689.0,0.00046295]
[1744597623239,0.17496,84690.0,84689.0,0.01362856]
[1744597623493,0.17496,84690.0,84689.0,0.007841]
[1744597624190,0.17496,84690.0,84689.0,0.01362856]
[1744597624600,0.011807,84692.0,84689.0,0.01362856]
[1744597624799,0.200728,84692.0,84689.0,0.01362856]
[1744597625016,0.200728,84692.0,84689.0,0.007841]
[1744597625213,0.200728,84692.0,84690.0,0.01315735]
[1744597625621,0.200728,84692.0,84690.0,0.00737805]
[1744597625823,0.200728,84692.0,84689.0,0.00046295]
[1744597626121,0.188924,84690.0,84689.0,0.00046295]
[1744597626338,0.30976554,84690.0,84689.0,0.00046295]
[1744597628834,0.188924,84690.0,84689.0,0.00046295]
[1744597630368,1.21548,84694.0,84689.0,0.00046295]
[1744597630369,1.21548,84694.0,84689.0,0.01226995]
[1744597630604,1.39044,84694.0,84689.0,0.20119395]
[1744597630839,1.402247,84694.0,84689.0,0.00046295]
[1744597631066,0.188922,84691.0,84690.0,0.01318817]
[1744597631288,0.188922,84691.0,84690.0,0.00737852]
[1744597631485,0.363882,84691.0,84690.0,0.01315607]
[1744597633075,0.363882,84691.0,84690.0,0.01415607]
[1744597634136,0.363882,84691.0,84690.0,0.00677755]
[1744597634335,0.363882,84691.0,84690.0,0.00577755]
[1744597636880,0.364882,84691.0,84690.0,0.00577755]
[1744597637079,0.364882,84691.0,84689.0,0.00046295]
[1744597639059,0.363882,84691.0,84689.0,0.00046295]
[1744597639373,0.365882,84691.0,84689.0,0.00046295]
[1744597639747,0.12084154,84690.0,84689.0,0.00046295]
[1744597639960,0.16624154,84690.0,84689.0,0.00046295]
[1744597642106,0.16924154,84690.0,84689.0,0.00046295]
[1744597644820,0.16924154,84690.0,84689.0,9.5e-07]
[1744597646407,0.003,84690.0,84689.0,9.5e-07]
[1744597647280,0.24457002,84690.0,84689.0,9.5e-07]
[1744597647551,0.17244154,84690.0,84689.0,9.5e-07]
[1744597647909,0.17144154,84690.0,84689.0,9.5e-07]
[1744597648237,0.16844154,84690.0,84689.0,9.5e-07]
[1744597648446,0.12284154,84690.0,84689.0,9.5e-07]
[1744597648808,0.12084154,84690.0,84689.0,9.5e-07]
[1744597649216,0.12384154,84690.0,84689.0,9.5e-07]
[1744597650403,0.29612154,84690.0,84689.0,9.5e-07]
[1744597651380,0.41685002,84690.0,84689.0,9.5e-07]
[1744597651534,0.29712154,84690.0,84689.0,9.5e-07]
[1744597651736,0.29912154,84690.0,84689.0,9.5e-07]
[1744597651960,0.17828,84690.0,84689.0,9.5e-07]
[1744597652343,0.17528,84690.0,84689.0,9.5e-07]
[1744597652763,0.17828,84690.0,84689.0,9.5e-07]
[1744597653180,0.17528,84690.0,84689.0,9.5e-07]
[1744597653419,0.17828,84690.0,84689.0,9.5e-07]
[1744597654597,0.41985002,84690.0,84689.0,9.5e-07]
[1744597654896,0.29912154,84690.0,84689.0,9.5e-07]
[1744597657704,0.12384154,84690.0,84689.0,9.5e-07]
[1744597657906,0.003,84690.0,84689.0,0.72846849]
[1744597658111,0.003,84690.0,84689.0,0.73441841]
[1744597658914,0.003,84690.0,84689.0,0.54549241]
[1744597659118,0.188924,84690.0,84689.0,0.42465087]
[1744597659517,0.011807,84692.0,84689.0,0.42465087]
[1744597659771,0.17532,84695.0,84693.0,0.188915]
[1744597660109,0.17532,84695.0,84694.0,0.0058997]
[1744597660538,0.17532,84695.0,84692.0,0.200726]
[1744597660736,0.17532,84695.0,84693.0,0.0058997]
[1744597662069,0.188924,84690.0,84689.0,0.41870095]
[1744597662206,0.011807,84692.0,84689.0,0.41870095]
[1744597662610,0.011807,84692.0,84690.0,0.00576338]
[1744597663036,0.17528,84694.0,84691.0,0.188922]
[1744597663272,0.17528,84694.0,84693.0,0.188917]
[1744597663519,0.17528,84694.0,84693.0,0.19468451]
[1744597664234,0.17528,84694.0,84693.0,0.00576751]
[1744597664834,0.17528,84694.0,84693.0,0.00676751]
[1744597664985,0.17528,84694.0,84693.0,0.001]
[1744597665196,0.17528,84694.0,84693.0,0.00676751]
[1744597665446,0.17528,84694.0,84693.0,0.001]
[1744597665614,0.17528,84694.0,84693.0,0.00676751]
[1744597665818,0.17528,84694.0,84693.0,0.001]
[1744597666792,0.17528,84694.0,84693.0,0.00676751]
[1744597667086,0.17528,84694.0,84693.0,0.001]
[1744597667289,0.17528,84694.0,84693.0,0.19568451]
[1744597667525,0.17528,84694.0,84693.0,0.235017]
[1744597667670,0.17528,84694.0,84693.0,0.24078451]
[1744597669962,0.17528,84694.0,84693.0,0.00676751]
[1744597671414,0.17528,84694.0,84693.0,0.00576751]
[1744597671844,0.17528,84694.0,84691.0,0.619426]
[1744597672051,0.17528,84694.0,84693.0,0.19468451]
[1744597672256,0.011806,84697.0,84692.0,0.13841467]
[1744597672419,0.17168,84700.0,84697.0,0.011806]
[1744597672621,0.0004212,84717.0,84699.0,0.0454]
[1744597672824,0.0004212,84717.0,84714.0,0.200673]
[1744597673051,0.0004212,84717.0,84716.0,0.188866]
[1744597673375,0.0004212,84717.0,84716.0,0.31532772]
[1744597673549,0.0004212,84717.0,84716.0,0.32270272]
[1744597674428,0.0004212,84717.0,84716.0,0.32370272]
[1744597674732,0.0004212,84717.0,84716.0,0.31679116]
[1744597674934,0.011798,84753.0,84738.0,0.188817]